Cogmind - Beta 16.1 @@@ ROGUE MODE // 2026.04.22 @ 21:28:12 Player: Bereft Result: Destroyed by YI-UF0 with YI-UF0's Doublenader Performance ------------- Evolutions (0) 0 Regions Visited (2) 400 Robots Destroyed (14) 70 Value Destroyed (416) 416 Prototype IDs (0) 0 Alien Tech Used (0) 0 Bonus (0) 0 TOTAL SCORE: 886 Bonus ------- None Cogmind --------- Core Integrity 0/250 Matter 300/300 Energy 75/100 System Corruption 0% Temperature Cool (2) Movement Flying (40) Location -10/Mines Parts ------- > --- POWER (1) -------- (None) > --- PROPULSION (2) --- Flight Unit > --- UTILITY (2) ------ (None) > --- WEAPON (2) ------- Light Assault Rifle > --- INVENTORY (5) ---- Flight Unit EM Pulse Gun Peak State ------------ > --- POWER ------------ Ion Engine > --- PROPULSION ------- Aluminum Leg Aluminum Leg > --- UTILITY ---------- Heat Sink Improved Heat Sink > --- WEAPON ----------- Particle Gun > --- INVENTORY -------- Small Laser [Rating: 9] Favorites ----------- Power Light Ion Engine Engine Light Ion Engine Propulsion Aluminum Leg Leg Aluminum Leg Wheel Wheel Flight Unit Flight Unit Utility Backup Plating I Device Improved Heat Sink Protection Backup Plating I Weapon EM Pulse Gun Energy Gun EM Pulse Gun Ballistic Gun Light Assault Rifle Launcher Grenade Launcher Build | -11 -10 -10 ------- Run | Yrd Mat Min Slots Evolved . | . . . Power . | . . . Propulsion . | . . . Utility . | . . . Weapon . | . . . Parts Attached 18 | 4 10 4 Power 2 | 1 1 . Engine 2 | 1 1 . Core . | . . . Reactor . | . . . Propulsion 6 | 2 2 2 Treads . | . . . Leg 2 | . 2 . Wheel 2 | 2 . . Hover . | . . . Flight 2 | . . 2 Utility 2 | . 2 . Device 2 | . 2 . Storage . | . . . Processor . | . . . Hackware . | . . . Protection . | . . . Artifact . | . . . Weapon 8 | 1 5 2 Energy Gun 6 | 1 4 1 Energy Cannon . | . . . Ballistic Gun 1 | . . 1 Ballistic Cannon . | . . . Launcher 1 | . 1 . Special Weapon . | . . . Impact Weapon . | . . . Slashing Weapon . | . . . Piercing Weapon . | . . . Special Melee Weapon . | . . . Unidentified Prototypes . | . . . Parts Lost 13 | . 12 1 Power 2 | . 2 . Propulsion 4 | . 3 1 Utility 2 | . 2 . Weapon 5 | . 5 . Highest Loss Streak 6 | . 6 1 To Critical Strikes . | . . . Average Backups . | . . 1 Power . | . . . Propulsion . | . . . Utility . | . . . Weapon . | . . . Tool/Special . | . . . Unused Backups 2 | . 1 1 Power . | . . . Propulsion 2 | . 1 1 Utility . | . . . Weapon . | . . . Tool/Special . | . . . Average Slot Usage (%) 59 | . 67 26 Engine 7 | . 9 . Leg 8 | . 10 . Wheel 8 | . 10 . Flight 2 | . . 12 Device 6 | . 8 . Protection 6 | . 8 . Energy Gun 14 | . 15 7 Ballistic Gun 1 | . . 6 Launcher 2 | . 3 . Peak Build Rating 9 | 4 9 4 Average Rating 4 | 2 5 1 On Entrance 1 | . 4 . Avg Prop Armor Cover (%) . | . . . Naked Turns 20 | . 17 3 Heaviest Build 10 | 5 10 2 Greatest Support 26 | 26 26 8 Greatest Overweight (x) 1 | 1 . . Average Overweight (x) . | . . . Largest Inventory Capacity 5 | 5 5 5 Average Capacity 5 | 5 5 5 Most Carried 4 | 2 3 4 Average Carried . | . . 1 Final Capacity 5 | 5 5 5 Final Carried 2 | . 1 2 Class Distribution -------------------- 70% | Mutant 29% | Scavenger-Mutant Dominant Class ---------------- Mutant | -10/Materials Mutant | -10/Mines Resources | -11 -10 -10 ----------- Run | Yrd Mat Min Matter Collected 340 | 209 91 40 Remotely . | . . . Salvage Created 503 | . 448 55 Parts 30 | . 25 5 Haulers Intercepted . | . . . Recyclers Shooed . | . . . Parts Field Recycled . | . . . Retrieved Matter . | . . . Parts Self-Destructed . | . . . Prevented . | . . . Parts Restored . | . . . Kills | -11 -10 -10 ------- Run | Yrd Mat Min Combat Hostiles Destroyed 11 | . 8 3 Guns 9 | . 6 3 AOE 1 | . 1 . Classes Destroyed 5 | . 4 1 Worker 1 | . 1 . Builder 1 | . 1 . Watcher 1 | . 1 . Swarmer 3 | . . 3 Grunt 8 | . 8 . Best Kill Streak 5 | . 5 3 Combat Bots Only 3 | . 3 3 Max Kills in Single Turn 1 | . 1 1 Gunslinging . | . . . Exploded 1 | . 1 . Melee . | . . . Uniques/NPCs Destroyed . | . . . Combat | -11 -10 -10 -------- Run | Yrd Mat Min Hostile Shots Fired 106 | . 94 12 Missed 29 | . 26 3 Hits 77 | . 68 9 Projectile 77 | . 68 9 AOE 1 | . . 1 Critical Strikes 4 | . 4 . Damage Taken 1077 | . 982 95 Core 258 | . 208 50 Absorbed by Shields . | . . . Core Remaining (%) 100 | 100 . . Volleys Fired 81 | . 71 10 Largest 2 | . 2 1 Hottest 105 | . 105 40 Shots Fired 86 | . 76 10 Gun 86 | . 76 10 Cannon . | . . . Launcher . | . . . Special . | . . . Kinetic . | . . . Thermal 30 | . 30 . Explosive . | . . . Electromagnetic 56 | . 46 10 Robot Hit Streak 9 | . 9 3 Robot Miss Streak 3 | . 3 3 Penetration Max . | . . . Secondary Targets . | . . . Shots Hit Robots 47 | . 43 4 Core Hits 21 | . 18 3 Critical Kills . | . . . Critical Parts Destroyed . | . . . Critical Strikes 2 | . 2 . Burn 1 | . 1 . Corrupt 1 | . 1 . Melee Attacks . | . . . Impact . | . . . Slashing . | . . . Piercing . | . . . Sneak Attacks . | . . . Combat Hostiles . | . . . Follow-up Attacks . | . . . Damage Inflicted 812 | . 770 42 Guns 664 | . 622 42 Cannons . | . . . Explosions 143 | . 143 . Melee . | . . . Ramming 5 | . 5 . Kinetic . | . . . Thermal 435 | . 435 . Explosive . | . . . Electromagnetic 372 | . 330 42 Impact . | . . . Slashing . | . . . Piercing . | . . . Highest Corruption . | . . . Average Corruption . | . . . Corruption Purged . | . . . Corruption Blocked . | . . . Overload Shots . | . . . Overflow Damage 14 | . 14 . Projectiles . | . . . Explosions 14 | . 14 . Melee . | . . . Knockbacks . | . . . Impact . | . . . Kinetic . | . . . Secondary . | . . . Self-Inflicted Damage 1 | . 1 . Shots . | . . . Rammed 1 | . 1 . Targets Rammed 3 | . 3 . Kicked 2 | . 2 . Crushed . | . . . Highest Temperature 478 | . 478 . Average Temperature 122 | . 122 . Received Heat Transfer 636 | . 636 . Effects 1 | . 1 . Shutdowns 1 | . 1 . Siege Activations . | . . . Martial Activations . | . . . Shielding Activations . | . . . Robots Disrupted . | . . . Combat Hostiles . | . . . Robots Corrupted . | . . . Combat Hostiles . | . . . Parts Fried . | . . . Impact Corruptions . | . . . Robots Melted 1 | . 1 . Combat Hostiles 1 | . 1 . Parts Melted 2 | . 2 . Heat Transferred 956 | . 956 . Parts Sabotaged . | . . . Parts Stolen . | . . . Parts Stripped . | . . . Power Chain Reactions 2 | . 2 . Alert | -11 -10 -10 ------- Run | Yrd Mat Min Maximum Alert Level . | . . . Low Security (%) 100 | 100 100 100 Level 1 . | . . . Level 2 . | . . . Level 3 . | . . . Level 4 . | . . . Level 5 . | . . . High Security . | . . . Max Security . | . . . Peak Influence 81 | . 81 65 Initial 15 | . . 15 Average 30 | . 30 40 Influence Increases 372 | . 302 70 Destroy 0b10 Robot/C 220 | . 160 60 Destroy 0b10 Robot/NC 15 | . 15 . Destroy Leader 52 | . 42 10 Successful Hack 6 | . 6 . Disable Machine 60 | . 60 . Destroy Structure 4 | . 4 . Lose Combat Pursuer 15 | . 15 . Influence Decreases 337 | . 262 75 Entered New Map 25 | . . 25 Time Decay 192 | . 152 40 Lost Part 120 | . 110 10 Squads Dispatched . | . . . Investigation . | . . . Extermination . | . . . Reinforcement . | . . . Assault . | . . . Garrison . | . . . Intercept . | . . . Searches Triggered . | . . . Construction Impeded . | . . . Haulers Reinforced . | . . . Active Scanning Responses . | . . . Cargo Convoy Interrupts . | . . . Stealth | -11 -10 -10 --------- Run | Yrd Mat Min Distress Signals . | . . . Communications Jammed . | . . . Distress Signals . | . . . Times Spotted 14 | . 10 4 Peak Tracking Total 3 | . 3 3 Tactical Retreats 1 | . 1 . Traps | -11 -10 -10 ------- Run | Yrd Mat Min Traps Triggered . | . . . Indirectly . | . . . Trap Hack Attempts . | . . . Triggered . | . . . Disarmed . | . . . Reprogrammed . | . . . Reused . | . . . Traps Extracted . | . . . Installed . | . . . Triggered . | . . . Machines | -11 -10 -10 ---------- Run | Yrd Mat Min Machines Disabled 4 | . 4 . Max in Single Turn 1 | . 1 . Machines Repaired . | . . . Machines Dismantled . | . . . Machines Sabotaged . | . . . Overloaded Fab Kills . | . . . Hacking | -11 -10 -10 --------- Run | Yrd Mat Min Machines Accessed 1 | . 1 . Terminals . | . . . Fabricators . | . . . Repair Stations 1 | . 1 . Recycling Units . | . . . Scanalyzers . | . . . Garrison Access . | . . . Total Hacks 1 | . 1 . Successful 1 | . 1 . Failed . | . . . Catastrophic . | . . . Database Lockouts . | . . . Manual . | . . . Terminals . | . . . Fabricators . | . . . Repair Stations 1 | . 1 . Recycling Units . | . . . Scanalyzers . | . . . Garrison Access . | . . . Terminal Hacks . | . . . Fabricator Hacks . | . . . Repair Station Hacks 1 | . 1 . Refit 1 | . 1 . Recycling Unit Hacks . | . . . Scanalyzer . | . . . Garrison Access Hacks . | . . . Unauthorized Hacks . | . . . Terminals . | . . . Fabricators . | . . . Repair Stations . | . . . Recycling Units . | . . . Scanalyzers . | . . . Garrison Access . | . . . Data Cores Recovered . | . . . Used . | . . . Hacking Detections 1 | . 1 . Full Trace Events . | . . . Feedback Events . | . . . Feedback Blocked . | . . . Robot Schematics Acquired . | . . . Robots Built . | . . . Authchips . | . . . Time . | . . . Total Robot Build Rating . | . . . Part Schematics Acquired . | . . . Parts Built . | . . . Authchips . | . . . Time . | . . . Total Part Build Rating . | . . . Part Studies Acquired . | . . . Parts Repaired . | . . . Time . | . . . Parts Recycled . | . . . Recycled Matter . | . . . Retrieved Matter . | . . . Retrieved Components . | . . . Parts Scanalyzed . | . . . Part Schematics Acquired . | . . . Parts Damaged . | . . . Bothacking | -11 -10 -10 ------------ Run | Yrd Mat Min Used RIF Installer . | . . . Robots Hacked . | . . . Non-combat . | . . . Combat . | . . . Robot Hacks Applied . | . . . Relay Couplers Released . | . . . Fabnet Peak Effective % . | . . . Robots Rewired . | . . . Allies Hacked . | . . . Hacks Repelled . | . . . Allies | -11 -10 -10 -------- Run | Yrd Mat Min Total Allies . | . . . Largest Group . | . . . Highest-Rated Group . | . . . Highest-Rated Ally . | . . . Total Orders . | . . . Ally Attacks . | . . . Total Damage . | . . . Kills . | . . . Allies Corrupted . | . . . Allies Melted . | . . . Intel | -11 -10 -10 ------- Run | Yrd Mat Min Active Infowar (turns) . | . . . Robot Analysis Total . | . . . Derelict Logs Recovered 1 | . . 1 Drone Launches . | . . . Drone Recoveries . | . . . Exploration | -11 -10 -10 ------------- Run | Yrd Mat Min Turns Passed 530 | 41 390 99 Spaces Moved 406 | 36 199 171 Core 102 | 13 36 53 Treads . | . . . Legs 75 | . 75 . Wheels 111 | 23 88 . Hover . | . . . Flight 118 | . . 118 Fastest Speed 37 | 50 50 37 Average Speed 70 | 85 93 41 Slowest Speed 120 | 100 120 50 Overloaded Moves . | . . . Propulsion Burnouts . | . . . Robots Hopped . | . . . Potential Cave-ins . | . . . Cave-ins Triggered . | . . . Exploration Rate (%) 25 | 4 30 41 Regions Visited 2 Branch Regions 1 Pre-discovered Areas . | . . . Known Exits Taken . | . . . Unknown Exits Taken 2 | 1 1 . Scrap Searched . | . . . Spaces Dug . | . . . Terrain Destroyed 4 | . 4 . Melee . | . . . Projectile . | . . . AOE 4 | . 4 . Terrain Rammed . | . . . Walls Destroyed . | . . . Machines Disabled . | . . . Actions | -11 -10 -10 --------- Run | Yrd Mat Min Total 562 | 46 326 190 Wait 32 | 3 29 . Move 404 | 35 198 171 Hop . | . . . Pick Up 20 | 4 12 4 Fast Attach . | . . . Attach 18 | 4 10 4 Detach 1 | . . 1 Swap 1 | . 1 . Drop 2 | . 2 . Fire 81 | . 71 10 Melee . | . . . Ram 1 | . 1 . Kick 2 | . 2 . Crush . | . . . Escape Stasis . | . . . Rewire . | . . . Trap . | . . . Miscellaneous . | . . . Route ------- -11/Scrapyard -10/Materials -10/Mines History --------- Turn | Location | Event 8 | -11/Scrapyard | Discovered new exit (range 15) 42 | -11/Scrapyard | Entered Materials 84 | -10/Materials | Discovered new exit (range 11) 217 | -10/Materials | Lost 5 parts (1p1n2u1w) 328 | -10/Materials | Core integrity fell below 50% 413 | -10/Materials | Core integrity fell below 20% 415 | -10/Materials | Released all parts (3) 416 | -10/Materials | Lost 6 parts (1p2n3w) 432 | -10/Materials | Entered Mines 453 | -10/Mines | Learned location of 1 exit from Materials 531 | -10/Mines | Destroyed by YI-UF0 with YI-UF0's Doublenader Last Messages --------------- Released Imp. Heat Sink. Released Heat Sink. Released Sml. Laser. R-06 Scavenger collects Corrupted Particle Gun. Acquired 15 matter. Slammed into R-06 Scavenger. LOCATION=UNKNOWN GOAL=ESCAPE Extracted 10 matter. Acquired derelict log, extracted data. Data stored: Materials exits (x1). S-10 Pest destroyed. Acquired Flight Unit. Acquired Corrupted Flight Unit. Acquired Lgt. Assault Rifle. Acquired 10 matter. K-01 Serf collects debris. YI-UF0: "BAROOM!" K-01 Serf destroyed. Flight Unit destroyed. Map ----- +----------------------------------------------------+ | | | | | | | | | | | ????????????????????????????????????????????????? | | ????????????????????????????????????????????????? | | ????????????????????????????????????????????????? | | ????????????????????????????????????????????????? | | ????????????????????????????????????????????????? | | ????????????????????????????????????????????????? | | ????????????????????? #?????????????????????????? | | ??????????????????? ????????????????????????? | | ??????????????????? g ???###??????????????????? | | ???????????????????? ?## ##?????????????????? | | ???????????????????? ? #?????????????????? | | ????????????????????? # ??????????????????? | | ????????????????????? ??????????????????? | | ???????????? #???????? ???????????????????? | | ???????????? r?????? k ???????????????????? | | ???????????? ????# #???????????????????? | | ???????????? #### ???????????????????? | | ?????????????? r #???????????????????? | | ?????????????????? * #???????????????????? | | ?????????????????????# ######??????????????? | | ??????????????????????# @ #??????????????? | | ??????????????????????## #??????????????? | | ???????????????????????# #### #??????????????? | | ?????????????????????# #??# #??????????????? | | ?????????????????????#u# #??# #??????????????? | | ?????????????????????# ## ??# ####???????????? | | ?????????????????????#??# ??# #???????????? | | ????????????????????????# ?# #???????????? | | ????????????????????????# ## ?##### #???????????? | | ???????????????????????? ??#?????# #???????????? | | ????????????????????????##????????# #???????????? | | ??????????????????????????????????# #???????????? | | ??????????????????????????????????# #???????????? | | ??????????????????????????????????# ### #???????? | | ??????????????????????????????????# #????????? | | ??????????????????????????????????# ####????????? | | ????????????????????####??????????# #???????????? | | ????????????????????# ##???????### #???????????? | | ????????????????????# #??????## #???????????? | | ???????????????????## #??????# #???????????? | | ????????#####?????## #?????## ##???????????? | | ???????## ##?#### #???### ##????????????? | | ??????## ### ##### #?????????????? | | ??????# #?????????????? | | ??????# ##?????????????? | +----------------------------------------------------+ Best States ------------- Heat Dissipation 49 Energy Generation 10 Energy Capacity 250 Matter Stores 300 Matter Capacity 300 Sight Range 16 Terrain Scan Density 10 Armor Coverage 160 Evasion (%) 62 Item Schematics ----------------- None Robot Schematics ------------------ None Fabricated ------------ Nothing Repaired ---------- Nothing Studied --------- None Alien Tech Used ----------------- None Achievements -------------- None Challenges ------------ None Game ------ Seed TowerFissionRay Manual? 0 Play Time 00:14:19 Cumulative 18.9 hours Start 2026.04.22 @ 21:15:44 End 2026.04.22 @ 21:28:12 Sessions 1 Manual Loads 0 Difficulty Rogue Special Mode None Game No. 29 Rogue 29 Adventurer 0 Explorer 0 Win Type - Total 0 Types 0/0/0/0/0/0/0/0/0/0 Lore% 14 Gallery% 20 Achievement% 18 Wizard Run 0 Options --------- Layout 1 ASCII 0 Keyboard 0 Movement Mouse Keybinds 0 Fullscreen 1 Font 32/SmallcapsGlow Map View 50x35 Zoom Use 0% Tactical HUD 0 Map Filters NONE Filters NONE Steam 1 RUN: 3639b8ae-7353-4939-a7f7-616df535ad15